bitfinex/quotes_ETHUSD_20260214
["timestamp","ask_amount","ask_price","bid_price","bid_amount"]
[1771052563551,0.0011,2055.1,2054.7,1.21672263]
[1771052563857,0.0011,2055.1,2054.7,1.67813896]
[1771052568639,0.0011,2055.1,2054.8,0.46141633]
[1771052569339,0.0011,2055.2,2054.8,0.46141633]
[1771052570866,0.0011,2055.2,2054.9,1.21660421]
[1771052572962,0.0011,2055.2,2054.9,0.46141633]
[1771052576378,0.0011,2055.2,2055.0,1.21654501]
[1771052577685,0.0011,2055.3,2055.0,1.67796134]
[1771052577983,0.0011,2055.3,2055.0,1.21654501]
[1771052578190,0.0071,2055.4,2055.0,1.67796134]
[1771052579968,0.0071,2055.4,2055.1,0.46141633]
[1771052580175,0.0011,2055.5,2055.1,0.46141633]
[1771052580485,0.0011,2055.5,2055.2,1.21642662]
[1771052580795,0.0011,2055.5,2055.3,0.46141633]
[1771052581397,0.0011,2055.7,2055.4,0.45201438]
[1771052582082,0.47068371,2055.7,2055.0,5.31807525]
[1771052582404,0.47068371,2055.7,2055.0,4.86606087]
[1771052582698,1.68681607,2055.7,2055.1,0.45201438]
[1771052584880,1.68681607,2055.7,2055.2,1.21642662]
[1771052585181,1.68681607,2055.7,2055.1,1.66846797]
[1771052585496,0.46958371,2055.6,2055.0,2.498]
[1771052586281,0.46958371,2055.6,2054.7,4.86670494]
[1771052586700,0.46958371,2055.6,2054.7,5.31871932]
[1771052587298,1.68583279,2055.5,2054.8,0.45201438]
[1771052590206,1.68583279,2055.5,2054.9,1.21660421]
[1771052592708,1.68583279,2055.5,2054.9,1.66861859]
[1771052593417,1.21624908,2055.5,2055.0,0.45201438]
[1771052593614,1.68686011,2055.7,2055.0,0.45201438]
[1771052595102,1.68686011,2055.7,2055.1,1.66850019]
[1771052596589,1.2172764,2055.7,2055.2,0.45201438]
[1771052597098,1.68686011,2055.7,2055.0,0.45201438]
[1771052597298,1.68686011,2055.7,2054.9,1.21660421]
[1771052597299,0.46958371,2055.6,2054.9,1.21660421]
[1771052597801,0.46958371,2055.6,2054.9,1.66861859]
[1771052599703,1.21624908,2055.5,2054.9,1.66861859]
[1771052607310,1.21624908,2055.5,2055.0,0.45201438]
[1771052607510,1.21623565,2055.6,2055.0,0.45201438]
[1771052609641,4.86577485,2055.7,2055.1,1.21648581]
[1771052609838,4.86577485,2055.7,2055.1,1.66850019]
[1771052610842,0.46958371,2055.6,2055.0,1.21649955]
[1771052612944,1.21624908,2055.5,2055.0,1.21649955]
[1771052615418,1.21624908,2055.5,2055.1,0.4792796]
[1771052617748,4.86481866,2055.6,2055.1,0.4792796]
[1771052617915,5.33033515,2055.6,2055.0,1.21654124]
[1771052618118,5.33033515,2055.6,2055.0,1.69582084]
[1771052620742,4.86481866,2055.6,2055.0,1.69582084]
[1771052623048,4.86481866,2055.6,2055.0,1.21654124]
[1771052623225,4.86481866,2055.6,2055.1,0.49814276]
[1771052623649,0.0011,2055.7,2055.1,0.49814276]
[1771052623851,1.21724199,2055.7,2055.1,0.49814276]
[1771052624048,1.71170557,2055.7,2055.1,0.49814276]
[1771052625728,0.0011,2055.7,2055.2,0.49814276]
[1771052631434,0.0011,2055.7,2055.2,1.71455146]
[1771052633657,0.0011,2055.7,2055.2,0.49814276]
[1771052633863,0.49446358,2055.6,2055.0,0.49814276]
[1771052636163,1.21624908,2055.5,2055.0,0.49814276]
[1771052637438,0.49446358,2055.4,2054.8,0.49814276]
[1771052640159,1.21636744,2055.3,2054.8,0.49814276]
[1771052640562,1.21636744,2055.3,2054.7,2.498]
[1771052640867,1.21636744,2055.3,2054.7,2.99614276]
[1771052643141,0.48055832,2055.2,2054.7,2.498]
[1771052643865,1.21636744,2055.3,2054.7,4.17505272]
[1771052644067,1.21635477,2055.4,2054.8,0.4603305]
[1771052644637,4.86509403,2055.5,2055.0,0.4603305]
[1771052645163,1.21624908,2055.5,2055.0,0.4603305]
[1771052646976,1.21623159,2055.6,2055.1,0.4603305]
[1771052647844,1.21623159,2055.6,2054.9,1.2165581]
[1771052648044,1.69678991,2055.6,2054.9,1.6768886]
[1771052649382,1.69678991,2055.6,2055.0,0.4603305]
[1771052659269,1.69678991,2055.6,2055.0,1.67686861]
[1771052660294,1.69678991,2055.6,2055.0,0.4603305]
[1771052662391,1.69678991,2055.6,2055.0,1.676861]
[1771052667493,1.69678991,2055.6,2055.0,0.4603305]
[1771052668393,1.69678991,2055.6,2055.0,1.67687353]
[1771052668588,1.21623159,2055.6,2055.0,0.4603305]
[1771052674696,1.69924673,2055.6,2054.8,1.21664071]
[1771052674896,0.48301514,2055.5,2054.8,1.70996262]
[1771052675094,0.48301514,2055.5,2054.9,0.49332191]
[1771052679890,1.21630826,2055.4,2054.9,0.49332191]
[1771052693836,1.21630826,2055.4,2054.8,1.21666037]
[1771052694036,0.46510925,2055.3,2054.7,0.001]
[1771052694408,0.46510925,2055.3,2054.7,0.48374911]
[1771052695539,0.46510925,2055.3,2054.7,1.70046887]
[1771052695736,1.21630826,2055.4,2054.8,0.48274911]
[1771052695909,1.21618992,2055.6,2055.0,0.48274911]
[1771052701237,1.21618992,2055.6,2055.0,1.69925716]
[1771052701412,1.21618992,2055.6,2055.1,0.46518642]
[1771052703741,1.21618992,2055.6,2055.2,0.46518642]
[1771052705943,1.6811191,2055.6,2055.0,0.46518642]
[1771052708042,1.6811191,2055.6,2054.8,1.21662944]
[1771052708242,0.46492918,2055.5,2054.8,1.68184839]
[1771052708549,0.46492918,2055.5,2054.9,0.46518642]
[1771052708842,0.46492918,2055.4,2054.7,0.46618642]
[1771052710554,1.21636744,2055.3,2054.7,0.46618642]
[1771052710723,0.46492918,2055.2,2054.7,0.001]
[1771052712853,1.21648581,2055.1,2054.7,0.46618642]
[1771052715364,4.86579036,2055.2,2054.7,0.46618642]
[1771052721642,4.86579036,2055.2,2054.7,0.001]
[1771052721842,5.33071954,2055.2,2054.7,0.001]
[1771052723266,8.88701414,2055.1,2054.7,0.001]
[1771052724176,1.21654501,2055.0,2054.7,0.001]
[1771052738997,4.86598092,2055.1,2054.7,0.001]
[1771052739665,5.33844386,2055.1,2054.7,0.001]
[1771052743904,4.86598092,2055.1,2054.7,0.001]
[1771052765217,8.89088512,2055.0,2054.7,0.001]
[1771052765717,11.38888512,2055.0,2054.7,0.001]
[1771052766215,11.38888512,2055.0,2054.6,0.001]
[1771052766421,11.38888512,2055.0,2054.4,0.46811802]
[1771052766422,8.89088512,2054.8,2054.4,0.46811802]
[1771052768628,1.21672263,2054.7,2054.2,0.46811802]
[1771052768920,1.21672263,2054.7,2054.2,0.001]
[1771052768921,4.20661462,2054.7,2054.2,0.001]
[1771052769629,3.71472263,2054.7,2054.2,0.46811802]
[1771052775117,3.71472263,2054.7,2054.3,0.46711802]
[1771052776632,3.71464249,2054.9,2054.4,0.46711802]
[1771052777610,9.38277711,2054.8,2054.2,0.46811802]
[1771052778639,8.89088512,2054.6,2054.2,0.46811802]
[1771052778937,8.89088512,2054.6,2054.2,0.001]
[1771052778938,9.38277711,2054.6,2054.2,0.001]
[1771052779137,11.88077711,2054.6,2054.2,0.001]
[1771052780727,1.21695954,2054.3,2054.0,0.0026]
[1771052781940,1.21695954,2054.3,2054.0,0.46971802]
[1771052783128,1.21684108,2054.5,2054.0,0.46971802]
[1771052790451,1.70873307,2054.5,2054.0,0.0026]
[1771052793458,1.21684108,2054.5,2054.0,0.0026]
[1771052796854,1.69762102,2054.5,2054.0,0.0026]
[1771052797039,10.59416104,2054.5,2054.0,0.0026]
[1771052817579,0.47349262,2054.4,2053.8,0.001]
[1771052819183,2.498,2054.3,2053.8,0.001]
[1771052819368,0.47349262,2054.2,2053.8,0.001]
[1771052819566,11.39454002,2054.3,2053.8,0.48365187]
[1771052819567,2.498,2054.3,2053.8,0.48365187]
[1771052819954,3.71496661,2054.3,2053.8,0.48365187]
[1771052820645,2.498,2054.3,2053.9,0.48265187]
[1771052821780,1.21684108,2054.5,2053.9,1.6998402]
[1771052821956,1.21684108,2054.5,2053.9,0.48265187]
[1771052822167,1.7090446,2054.5,2053.9,0.48265187]
[1771052826262,1.7090446,2054.5,2053.9,1.699839]
[1771052826466,1.21684108,2054.5,2054.0,0.45296254]
[1771052828500,1.21684108,2054.5,2053.8,1.67118558]
[1771052828962,1.21684108,2054.5,2053.9,0.45296254]
[1771052831379,1.7090446,2054.5,2053.9,0.45296254]
[1771052850412,1.7090446,2054.5,2053.9,1.67015281]
[1771052852018,1.70709737,2054.5,2053.9,1.67015281]
[1771052854742,1.21489385,2054.5,2054.0,0.46478326]
[1771052854924,1.47030589,2054.6,2054.0,0.46478326]
[1771052855221,1.47030589,2054.6,2054.1,0.46478326]
[1771052855524,0.25351845,2054.6,2054.1,0.46478326]
[1771052856707,1.21776342,2054.8,2054.2,1.21701879]
[1771052856891,1.21776342,2054.8,2054.2,1.68180205]
[1771052857690,1.21776342,2054.8,2054.3,0.46478326]
[1771052861514,1.21776342,2054.8,2054.2,1.21701879]
[1771052861733,0.0011,2054.8,2054.2,1.69311683]
[1771052864335,0.0011,2054.8,2054.3,0.47609804]
[1771052866451,0.0011,2054.8,2054.3,1.69304991]
[1771052868550,0.0011,2054.8,2054.3,0.47609804]
[1771052868851,0.0011,2054.8,2054.3,1.69305639]
[1771052872654,0.0011,2054.8,2054.3,0.47609804]
[1771052872828,0.0011,2054.8,2054.2,1.21697256]
[1771052872829,0.47029026,2054.8,2054.2,1.21697256]
[1771052874165,1.21672263,2054.7,2054.2,0.47609804]
[1771052875554,1.68698992,2054.8,2054.2,0.47609804]
[1771052877459,1.68698992,2054.8,2054.2,1.69306909]
[1771052880943,0.46919026,2054.7,2054.0,11.88771777]
[1771052881150,0.46919026,2054.7,2054.0,1.21709974]
[1771052881658,0.46360072,2054.5,2053.9,1.2181492]
[1771052881961,0.46360072,2054.5,2054.1,0.6]
[1771052885163,1.68049545,2054.5,2054.1,0.6]
[1771052885344,0.46360072,2054.4,2054.1,0.6]
[1771052886562,0.46360072,2054.4,2053.9,0.001]
[1771052888435,1.21695642,2054.4,2053.9,0.001]
[1771052888636,0.46360072,2054.3,2053.9,0.001]
[1771052890968,1.68056126,2054.3,2053.9,0.001]
[1771052892072,0.46360072,2054.3,2053.9,0.001]
[1771052897351,0.46360072,2054.2,2053.9,0.001]
[1771052898576,1.21697072,2054.3,2053.9,0.001]
[1771052899380,0.46360072,2054.3,2053.9,0.001]
[1771052900277,0.46360072,2054.5,2053.9,0.001]
[1771052902577,1.21690031,2054.4,2053.9,0.001]
[1771052904658,0.46360072,2054.4,2053.9,0.001]
[1771052916500,1.68052346,2054.4,2053.9,0.001]
[1771052923814,0.46578874,2054.3,2053.9,0.001]
[1771052941834,0.48134027,2054.2,2053.9,0.001]
[1771052942412,0.48134027,2054.0,2053.7,2.499]
[1771052942643,0.48134027,2054.0,2053.6,0.0034]
[1771052946044,1.69853682,2053.9,2053.6,0.0034]
[1771052948977,0.48134027,2053.8,2053.6,0.0034]
[1771052949473,1.21719655,2053.9,2053.6,0.0034]
[1771052949951,1.69853682,2053.9,2053.6,0.0034]
[1771052950260,1.69853682,2053.9,2053.6,0.00205]
[1771052950870,0.48134027,2053.8,2053.6,0.00205]
[1771052952768,1.69865535,2053.7,2053.6,0.00205]
[1771052954243,1.69865535,2053.7,2053.4,0.001]
[1771052963984,0.48134027,2053.6,2053.4,0.001]
[1771052965788,1.69871872,2053.6,2053.4,0.001]
[1771052966675,0.48134027,2053.6,2053.4,0.001]
[1771052969690,5.35040897,2053.8,2053.4,0.001]
[1771052970206,0.48134027,2053.7,2053.4,0.001]
[1771052971713,1.69866991,2053.7,2053.4,0.001]
[1771052988958,0.47904695,2053.6,2053.4,0.001]
[1771052990848,1.69643105,2053.6,2053.4,0.001]
[1771052993448,1.69643105,2053.6,2053.3,0.001]
[1771052993628,2.89628572,2053.5,2053.3,0.001]
[1771052993831,2.59406859,2053.4,2053.3,0.001]
[1771052994028,2.29185142,2053.4,2053.3,0.001]
[1771052996652,1.69646759,2053.6,2053.3,0.001]
[1771053000054,0.47904695,2053.5,2053.3,0.001]
[1771053000851,1.6965014,2053.5,2053.3,0.001]
[1771053002228,0.47904695,2053.5,2053.3,0.001]
[1771053002848,1.21742292,2053.6,2053.3,0.001]
[1771053005040,1.69399592,2053.6,2053.3,0.001]
[1771053005244,0.476573,2053.5,2053.3,0.001]
[1771053007652,1.6940347,2053.5,2053.3,0.001]
[1771053012265,1.6940347,2053.5,2053.0,2.35590796]
[1771053012639,1.6940347,2053.5,2053.0,3.57363105]
[1771053013863,1.6940347,2053.5,2053.0,2.35590796]
[1771053016668,0.476573,2053.4,2052.9,1.21875312]
[1771053016866,0.476573,2053.4,2052.9,0.001]
[1771053018667,1.69410938,2053.4,2052.9,0.001]
[1771053031772,1.21739549,2053.6,2053.0,0.45199758]
[1771053031972,1.21725581,2053.8,2053.1,0.45199758]
[1771053032180,0.25430696,2053.6,2053.2,11.13423847]
[1771053034388,0.25430696,2053.6,2053.2,12.3518162]
[1771053034884,0.25430696,2053.6,2053.2,1.66957531]
[1771053040523,0.0011,2053.9,2053.3,0.45752218]
[1771053040675,0.0011,2053.9,2053.6,0.45752218]
[1771053040988,0.0011,2053.9,2053.5,10.68224089]
[1771053040989,0.0011,2053.9,2053.5,11.13358395]
[1771053041377,0.0011,2053.9,2053.3,11.13358395]
[1771053041577,1.67294929,2053.9,2053.3,0.45752218]
[1771053041777,0.45464692,2053.8,2053.2,3.71657773]
[1771053042606,1.6719083,2053.8,2053.2,3.71657773]
[1771053044613,0.45464692,2053.7,2053.2,2.499]
[1771053045081,0.45464692,2053.7,2053.0,1.21772242]
[1771053046727,1.67202128,2053.6,2053.0,1.21772242]
[1771053047536,1.67202128,2053.6,2053.2,0.6]
[1771053061944,0.0011,2053.9,2053.5,10.67606177]
[1771053062117,0.0011,2053.9,2053.4,6.467]
[1771053063017,0.0011,2053.9,2053.5,10.67606177]
[1771053065836,0.0011,2053.9,2053.6,1.21737436]
[1771053071042,0.0011,2054.0,2053.7,10.67606177]
[1771053071538,0.0011,2054.0,2053.8,1.21725581]
[1771053072132,0.0011,2054.0,2053.8,11.89331758]
[1771053072757,0.0011,2054.1,2053.8,11.89331758]
[1771053077189,0.0011,2054.4,2054.0,21.35212354]
[1771053077352,0.0011,2054.6,2054.2,10.67606177]
[1771053077857,0.0011,2054.8,2054.4,10.67606177]
[1771053078053,0.0011,2054.8,2054.6,10.67606177]
[1771053078440,0.0011,2054.8,2054.6,11.89279154]
[1771053079438,0.0011,2054.9,2054.6,11.89279154]
[1771053079638,0.5011,2054.9,2054.4,14.39191658]
[1771053081172,0.5,2054.8,2054.2,10.67606177]
[1771053081368,0.5,2054.8,2054.3,2.499]
[1771053083172,0.5,2054.8,2054.3,3.71590078]
[1771053100181,0.5,2054.7,2054.3,3.71590078]
[1771053101382,0.5,2054.7,2054.3,2.499]
[1771053102468,0.5,2054.7,2054.3,3.7159285]
[1771053103863,1.71672844,2054.7,2054.3,2.499]
[1771053104380,0.5,2054.6,2054.3,2.499]
[1771053104697,0.5,2054.8,2054.3,2.499]
[1771053106584,0.5,2054.8,2054.2,1.21701362]
[1771053107595,1.71672263,2054.7,2054.1,4.86929117]
[1771053111197,0.5,2054.6,2054.1,1.21807803]
[1771053111497,0.5,2054.6,2054.1,0.001]
[1771053112599,1.7167975,2054.6,2054.1,0.001]
[1771053122719,0.5,2054.5,2054.1,0.001]
[1771053124219,1.21690031,2054.4,2054.1,0.001]
[1771053124520,0.5,2054.3,2054.1,0.001]
[1771053129325,0.5,2054.5,2054.1,0.001]
[1771053129530,1.71684108,2054.5,2054.1,0.001]
[1771053134642,0.5,2054.5,2054.1,0.001]
[1771053134841,1.71672755,2054.7,2054.1,0.001]
[1771053142947,0.5,2054.7,2054.1,0.001]
[1771053143630,1.21670779,2054.8,2054.1,0.001]
[1771053143842,1.71670779,2054.8,2054.1,0.001]
[1771053145040,1.71670779,2054.8,2054.1,1.21807803]
[1771053151242,0.5,2054.7,2054.1,1.21807803]
[1771053153074,1.71678185,2054.6,2054.1,1.21807803]
[1771053153876,0.5,2054.5,2054.1,1.21807803]
[1771053166596,0.5,2054.5,2054.1,0.001]
[1771053180733,0.5,2054.8,2054.1,10.67339693]
[1771053185722,0.5,2054.6,2054.2,1.21701879]
[1771053186027,0.5,2054.6,2054.1,11.8904277]
[1771053188628,0.5,2054.6,2054.3,0.6]
[1771053198132,0.5,2054.8,2054.3,12.48934938]
[1771053198339,1.71666725,2054.8,2054.3,12.48934938]
[1771053206455,0.5,2054.7,2054.3,12.48934938]
[1771053210162,0.5,2054.7,2054.3,14.98734938]
[1771053224994,0.5,2054.7,2054.3,4.31495245]
[1771053227798,0.5,2054.7,2054.3,4.31495878]
[1771053228473,0.5,2054.7,2054.3,3.098]
[1771053231803,1.71672772,2054.7,2054.3,3.098]
[1771053235102,0.5,2054.6,2054.3,3.098]
[1771053262033,0.5,2054.5,2054.3,3.098]
[1771053262234,0.5,2054.5,2054.3,0.6]
[1771053277251,0.5,2054.5,2054.1,3.71607083]
[1771053282356,0.5,2054.4,2054.1,2.499]
[1771053286254,0.5,2054.4,2054.1,3.71607678]
[1771053291051,1.71683041,2054.6,2054.1,3.71607678]
[1771053293836,0.5,2054.6,2054.1,3.71607678]
[1771053294030,1.71678433,2054.6,2054.1,3.71607678]
[1771053299268,0.5,2054.6,2054.1,3.71607678]
[1771053303879,1.71678397,2054.6,2054.1,3.71607678]
[1771053305175,1.21678397,2054.6,2054.1,3.71607678]
[1771053305356,0.5,2054.5,2054.1,3.71607678]
[1771053314687,0.5,2054.5,2054.1,2.499]
[1771053314898,0.5,2054.4,2054.1,2.499]
[1771053317564,0.5,2054.4,2054.1,3.71607658]
[1771053319794,0.5,2054.4,2054.1,2.499]
[1771053321068,0.5,2054.4,2054.1,3.71607526]
[1771053321267,12.3896992,2054.4,2054.1,0.001]
[1771053321508,0.5,2054.3,2054.1,0.001]
[1771053321797,11.8896992,2054.4,2054.1,0.001]
[1771053321798,1.71701879,2054.2,2054.1,0.001]
[1771053322182,0.5,2054.1,2053.9,0.001]
[1771053327867,0.5,2054.0,2053.9,0.001]
[1771053328208,0.5,2054.0,2053.6,0.001]
[1771053330797,0.2530429,2053.5,2053.4,0.001]
[1771053330997,0.2517929,2053.5,2053.4,0.001]
[1771053331196,0.2504929,2053.5,2053.4,0.001]
[1771053335724,0.5,2053.9,2053.5,0.25049289]
[1771053337120,0.5,2053.9,2053.4,0.001]
[1771053338924,1.71724184,2053.9,2053.4,0.001]
[1771053339220,10.67278821,2054.0,2053.4,0.001]
[1771053339519,0.5,2053.8,2053.4,0.001]
[1771053340319,1.21719704,2053.9,2053.4,0.001]
[1771053340619,1.71709931,2054.1,2053.4,0.001]
[1771053340808,0.5,2054.0,2053.4,1.21849293]
[1771053342599,4.21504283,2054.2,2053.4,1.21849293]
[1771053343199,3.71504283,2054.2,2053.4,1.21849293]
[1771053343400,4.21504283,2054.2,2053.4,1.21849293]
[1771053343604,0.5,2054.1,2053.4,1.21849293]
[1771053344396,0.5,2054.1,2053.5,10.67278821]
[1771053345528,0.5,2054.1,2053.6,1.21737436]
[1771053345925,2.998,2054.2,2053.6,1.21737436]
[1771053347326,1.72282666,2054.4,2053.6,1.21737436]
[1771053347510,1.71692666,2054.4,2053.6,1.21737436]
[1771053347834,0.5,2054.4,2053.7,10.67559965]
[1771053348337,1.21684697,2054.5,2053.8,2.499]
[1771053348633,0.5,2054.6,2053.9,10.67559965]
[1771053350932,0.5,2054.6,2054.0,1.21713729]
[1771053350933,0.0011,2054.5,2054.0,1.21713729]
[1771053352233,0.5011,2054.5,2053.8,3.71625157]
[1771053352446,0.5011,2054.5,2053.8,1.21725157]
[1771053353148,0.0011,2054.5,2053.9,10.67559965]
[1771053355739,0.0011,2054.5,2054.1,1.21707803]
[1771053360145,0.0011,2054.5,2054.1,13.17459965]
[1771053361120,11.17669965,2054.5,2054.1,2.499]
[1771053361324,0.5,2054.4,2054.1,2.499]
[1771053362223,0.5,2054.4,2054.1,3.71604978]
[1771053362626,0.5,2054.4,2054.1,2.499]
[1771053364455,0.5,2054.4,2054.1,3.71606946]
[1771053364654,0.0011,2054.5,2054.1,3.71606946]
[1771053364867,0.0011,2054.5,2054.1,14.39166911]
[1771053365535,0.0011,2054.5,2054.1,3.71606946]
[1771053368167,0.0011,2054.5,2054.1,14.39166911]
[1771053368331,0.0011,2054.5,2054.2,6.467]
[1771053368656,0.0011,2054.5,2054.3,1.21695954]
[1771053370150,0.0011,2054.7,2054.3,11.89255919]
[1771053370863,0.0011,2054.7,2054.4,6.467]
[1771053371156,0.0011,2054.7,2054.5,2.498]
[1771053371559,0.0011,2054.7,2054.5,13.17359965]
[1771053373648,0.0011,2054.7,2054.6,1.21678185]
[1771053376161,0.0011,2054.9,2054.6,1.21678185]
[1771053378270,0.0011,2055.0,2054.7,10.67559965]
[1771053378570,0.0011,2055.1,2054.8,2.498]
[1771053380459,0.0011,2055.1,2054.8,3.71464666]
[1771053383234,0.0011,2055.1,2054.8,2.498]
[1771053383235,0.5,2055.0,2054.8,2.498]
[1771053383464,0.5,2055.0,2054.6,2.498]
[1771053384346,0.0011,2055.1,2054.6,2.498]
[1771053384553,0.5011,2055.1,2054.6,2.498]
[1771053385368,0.5,2055.0,2054.6,2.498]
[1771053385566,0.5,2055.0,2054.6,3.71478163]
[1771053386067,0.5,2055.0,2054.4,1.21685227]
[1771053386251,0.5,2054.9,2054.6,2.498]
[1771053387244,0.5,2054.9,2054.3,3.71591636]
[1771053388675,0.5,2054.8,2054.3,3.71591636]
[1771053392751,0.5,2055.0,2054.3,3.71591636]
[1771053394757,0.5,2055.0,2054.5,1.21684108]
[1771053395445,0.5011,2055.1,2054.5,1.21684108]
[1771053396746,0.5,2054.9,2054.4,6.467]
[1771053397148,0.5,2054.9,2054.4,5.33]
[1771053397751,0.5,2054.9,2054.3,3.71591172]
[1771053397952,0.5,2054.9,2054.3,1.21791172]
[1771053398151,0.5,2054.9,2054.4,2.498]
[1771053398778,1.71664154,2054.9,2054.4,2.498]
[1771053399050,0.5,2054.8,2054.4,3.7148971]
[1771053399278,0.5,2054.8,2054.4,1.2168971]
[1771053399583,0.5,2054.8,2054.3,3.71593414]
[1771053401087,0.5,2054.7,2054.3,0.001]
[1771053403257,0.5,2054.6,2054.3,0.001]
[1771053408783,0.5,2054.5,2054.3,0.001]
[1771053411598,1.71684395,2054.5,2054.3,0.001]
[1771053411772,0.5,2054.5,2054.3,0.001]
[1771053415906,0.5,2054.4,2054.3,0.001]
[1771053419985,1.71690031,2054.4,2054.3,0.001]
[1771053420322,0.4995,2054.3,2054.0,2.314]
[1771053420479,0.4995,2054.2,2053.8,0.001]
[1771053420684,0.25409889,2054.0,2053.8,0.001]
[1771053421120,0.75359889,2054.0,2053.8,0.001]
[1771053426522,0.4995,2054.0,2053.8,0.001]
[1771053427117,0.4995,2054.2,2053.8,0.001]
[1771053429202,1.21702899,2054.2,2053.8,0.001]
[1771053429419,0.4995,2054.1,2053.8,0.001]
[1771053451564,0.4995,2054.0,2053.8,0.001]
[1771053452972,1.71664373,2054.0,2053.8,0.001]
[1771053453267,0.4995,2053.9,2053.8,0.001]
[1771053455668,0.4995,2053.8,2053.6,0.001]
[1771053460979,0.4995,2053.7,2053.6,0.001]
[1771053466958,1.7168203,2053.7,2053.4,0.001]
[1771053467356,0.4995,2053.7,2053.4,0.001]
[1771053469983,1.71672568,2053.9,2053.4,0.001]
[1771053474787,0.5006,2054.1,2053.4,0.002]
[1771053474991,1.71771696,2054.1,2053.4,0.002]
[1771053475751,0.4995,2054.0,2053.4,0.002]
[1771053478558,0.4995,2054.0,2053.4,1.21949293]
[1771053479908,1.71664326,2054.0,2053.4,1.21949293]
[1771053480813,0.00325,2053.6,2053.4,1.21949293]
[1771053480972,0.00335,2053.9,2053.4,1.21949293]
[1771053481177,0.0025,2053.9,2053.4,1.21949293]
[1771053483310,0.502,2053.9,2053.4,1.21849293]
[1771053487003,0.0025,2053.9,2053.4,1.21949293]
[1771053487174,0.0025,2053.9,2053.5,12.45797767]
[1771053487378,0.0025,2053.9,2053.6,0.001]
[1771053487578,0.0011,2054.2,2053.7,12.45797767]
[1771053487774,0.0011,2054.2,2053.9,12.45797767]
[1771053487992,0.0011,2054.2,2053.9,14.95697767]
[1771053489075,0.0011,2054.2,2053.9,2.499]
[1771053490681,0.5011,2054.2,2053.9,2.499]
[1771053491305,0.5011,2054.2,2053.7,2.499]
[1771053493120,0.5,2054.1,2053.7,3.71631138]
[1771053496127,0.5,2054.1,2053.7,2.499]
[1771053496429,0.0011,2054.2,2053.7,3.71631081]
[1771053496818,0.0011,2054.2,2053.7,16.17428848]
[1771053497022,0.0011,2054.2,2053.8,6.467]
[1771053497217,0.0011,2054.2,2053.9,1.21719655]
[1771053497531,0.0011,2054.2,2053.9,13.67517422]
[1771053501530,0.0011,2054.2,2054.0,2.499]
[1771053501727,0.0011,2054.3,2054.1,7.067]
[1771053501930,0.0011,2054.4,2054.1,0.6]
[1771053506822,0.0011,2054.4,2054.2,1.21701879]
[1771053507016,0.0011,2054.5,2054.2,1.21701879]
[1771053511064,0.0011,2054.5,2054.3,2.498]
[1771053514740,0.0011,2054.5,2054.3,3.71495412]
[1771053517267,0.5011,2054.6,2054.3,3.71495412]
[1771053518950,0.0011,2054.7,2054.3,3.71495412]
[1771053520668,0.49079029,2054.7,2054.3,3.71495412]
[1771053522405,1.70752179,2054.7,2054.3,2.498]
[1771053523396,1.70751536,2054.7,2054.3,2.498]
[1771053527602,0.48969029,2054.6,2054.3,2.498]
[1771053528182,0.48969029,2054.6,2054.2,1.21697526]
[1771053528380,0.48969029,2054.6,2054.2,3.71497526]
[1771053531504,1.70647752,2054.6,2054.2,2.498]
[1771053531811,0.48969029,2054.6,2054.2,3.71501759]
[1771053533209,0.48969029,2054.6,2054.2,1.21701759]
[1771053544229,0.45185489,2054.5,2054.1,2.498]
[1771053544926,0.45185489,2054.5,2054.0,0.001]
[1771053546824,0.45185489,2054.4,2054.0,1.21813477]
[1771053548930,0.45185489,2054.4,2054.2,0.6]
[1771053553532,1.66875695,2054.4,2054.0,0.001]
[1771053556735,0.45185489,2054.3,2054.0,0.001]
[1771053557325,1.21699216,2054.3,2054.0,0.001]
[1771053557511,0.45185489,2054.2,2054.0,0.001]
[1771053574057,1.21702268,2054.2,2054.0,0.001]
[1771053574254,0.49063848,2054.1,2053.9,0.001]
[1771053591192,1.70771659,2054.1,2053.9,0.001]
[1771053591853,0.49063848,2054.1,2053.9,0.001]
[1771053597273,1.70772015,2054.1,2053.9,0.001]
[1771053600284,0.47683553,2054.0,2053.7,0.001]
[1771053600582,0.47549302,2054.0,2053.7,0.001]
[1771053601163,13.67394633,2054.1,2053.7,0.001]
[1771053601164,12.94429256,2053.9,2053.7,0.001]
[1771053601361,12.94429256,2053.9,2053.5,0.001]
[1771053601362,0.4902779,2053.8,2053.5,0.001]
[1771053601561,0.4902779,2053.7,2053.4,0.001]
[1771053602371,1.7075933,2053.7,2053.4,0.001]
[1771053602578,0.4902779,2053.7,2053.4,0.001]
[1771053603557,1.7075999,2053.7,2053.4,0.001]
[1771053607674,1.7059499,2053.7,2053.4,0.001]
[1771053608171,0.4886279,2053.7,2053.4,0.001]
[1771053611795,0.4902779,2053.9,2053.4,0.001]
[1771053611969,3.7151895,2054.0,2053.4,0.45930229]
[1771053612297,4.2054674,2054.0,2053.4,0.45930229]
[1771053613695,4.2064674,2054.0,2053.4,1.6767852]
[1771053614397,4.2064674,2054.0,2053.4,0.45930229]
[1771053614564,4.2064674,2054.0,2053.4,0.001]
[1771053615199,0.4902779,2053.9,2053.4,1.21848903]
[1771053617900,1.70751155,2053.9,2053.4,0.001]
[1771053620617,4.86838405,2054.1,2053.4,0.45930229]
[1771053620817,5.35866195,2054.1,2053.4,0.45930229]
[1771053621005,0.4902779,2054.0,2053.4,0.45930229]
[1771053622117,0.4902779,2054.0,2053.4,0.001]
[1771053622318,1.70747445,2053.9,2053.4,0.001]
[1771053623325,0.4902779,2053.8,2053.4,0.001]
[1771053625094,1.21731508,2053.7,2053.4,0.001]
[1771053625613,1.70759298,2053.7,2053.4,0.001]
[1771053631828,0.47757725,2053.6,2053.4,0.001]
[1771053634027,0.47757725,2053.8,2053.4,0.001]
[1771053636933,1.21731508,2053.7,2053.4,0.001]